[Event "Australian-ch 2020"]
[Site "Kogarah"]
[Date "2020.01.02"]
[Round "1.1"]
[White "Kuybokarov, Temur"]
[Black "Hu, Jason"]
[Result "1-0"]
[ECO "B12"]
[WhiteElo "2523"]
[BlackElo "2159"]
[Annotator "RC"]
[PlyCount "49"]
[EventDate "2020.01.02"]
[EventType "swiss"]
[EventCountry "AUS"]
[SourceTitle "playchess.com"]
[Source "ChessBase"]
[SourceQuality "1"]
[TimeControl "40/5400+30:1800+30"]

1. e4 {[%emt 1:30:30]} c6 {[%emt 1:30:30]} 2. d4 {[%emt 0:00:30]} d5 {[%emt 0:00:30]} 3. e5 {[%emt 0:00:30]} Bf5 {[%emt 0:00:30]} 4. Nf3 {[%emt 0:00:30]} e6 {[%emt 0:00:30]} 5. Be2 {[%emt 0:00:30]} c5 {[%emt 0:00:30]} 6. Be3 {[%emt 0:00:30]} cxd4 {[%emt 0:00:30]} 7. Nxd4 {[%emt 0:00:30]} Ne7 {[%emt 0:00:30]} 8. O-O {[%emt 0:00:30]} Nbc6 {[%emt 0:00:30]} 9. Bb5 {[%emt 0:00:30]} a6 {[%emt 0:00:30]} 10. Bxc6+ {[%emt 0:00:30]} bxc6 {[%emt 0:00:30]} 11. c4 {[%emt 0:00:30]} Qd7 {[%emt 0:00:30]} 12. cxd5 {[%emt 0:00:30]} cxd5 {[%emt 0:00:30]} 13. Nc3 {[%emt 0:00:30]} Bg6 {[%emt 0:00:30]} 14. Na4 {[%emt 0:00:30]} Nc8 {[%emt 0:00:30]} 15. Rc1 {[%emt 0:00:30]} Be7 {[%emt 0:00:30]} 16. Rxc8+ {[%emt 0:00:30]} Qxc8 {[%emt 0:00:30]} 17. Nb6 {[%emt 0:00:30]} Qb7 {[%emt 0:00:30]} 18. Qa4+ {[%emt 0:00:30]} Kf8 {[%emt 0:00:30]} 19. Nxa8 {[%emt 0:00:30]} Qxa8 {[%emt 0:00:30]} 20. Rc1 {[%emt 0:00:30]} Qb7 {[%emt 0:00:30]} 21. Qb3 {[%emt 0:00:30]} Qa8 {[%emt 0:00:30]} 22. Nc6 {[%emt 0:00:30]} d4 {[%emt 0:00:30]} 23. Nxe7 {[%emt 0:00:30]} Kxe7 {[%emt 0:00:30]} 24. Qb4+ {[%emt 0:00:30]} Ke8 {[%emt 0:00:30]} 25. Bg5 {[%emt 0:00:30]} 1-0

[Event "Australian-ch 2020"]
[Site "Kogarah"]
[Date "2020.01.02"]
[Round "1.4"]
[White "Huynh, Arthur"]
[Black "McClymont, Brodie"]
[Result "0-1"]
[ECO "D85"]
[WhiteElo "2136"]
[BlackElo "2421"]
[Annotator "ChessBase"]
[PlyCount "66"]
[EventDate "2020.01.02"]
[EventType "swiss"]
[EventCountry "AUS"]
[SourceTitle "playchess.com"]
[Source "ChessBase"]
[SourceQuality "1"]
[TimeControl "40/5400+30:1800+30"]

1. d4 {[%emt 0:00:00]} Nf6 {[%emt 0:00:00]} 2. c4 {[%emt 0:00:00]} g6 {[%emt 0:00:02]} 3. Nc3 {[%emt 0:00:11]} d5 {[%emt 0:00:20]} 4. cxd5 {[%emt 0:01:11]} Nxd5 {[%emt 0:00:11]} 5. e4 {[%emt 0:00:40]} Nxc3 {[%emt 0:00:05]} 6. bxc3 {[%emt 0:00:06]} Bg7 {[%emt 0:00:03]} 7. Nf3 {[%emt 0:00:14]} O-O {[%emt 0:00:11]} 8. Be3 {[%emt 0:00:35]} c5 {[%emt 0:00:05]} 9. Rb1 {[%emt 0:00:36]} b6 {[%emt 0:14:01]} 10. Qd2 {[%emt 0:02:51]} Bb7 {[%emt 0:01:57]} 11. d5 {[%emt 0:04:32]} e6 {[%emt 0:04:21]} 12. c4 {[%emt 0:02:06]} exd5 {[%emt 0:02:35]} 13. exd5 {[%emt 0:00:34]} Bc8 {[%emt 0:02:04]} 14. h3 {[%emt 0:10:33]} Bf5 {[%emt 0:03:58]} 15. Bd3 {[%emt 0:00:45]} Bxd3 {[%emt 0:00:12]} 16. Qxd3 {[%emt 0:00:08]} Nc6 {[%emt 0:00:13]} 17. O-O {[%emt 0:00:42]} Qd7 {[%emt 0:00:37]} 18. Rfd1 {[%emt 0:01:46]} Nb4 {[%emt 0:03:30]} 19. Qb3 {[%emt 0:09:08]} a5 {[%emt 0:00:18]} 20. a4 {[%emt 0:00:25]} Rfe8 {[%emt 0:00:40]} 21. Re1 {[%emt 0:04:20]} Re4 {[%emt 0:06:48]} 22. Bd2 {[%emt 0:05:03]} Rae8 {[%emt 0:06:44]} 23. Rxe4 {[%emt 0:02:08]} Rxe4 {[%emt 0:00:04]} 24. Re1 {[%emt 0:00:34]} Rxe1+ {[%emt 0:00:45]} 25. Bxe1 {[%emt 0:00:17]} Qe8 {[%emt 0:05:51]} 26. Qd1 {[%emt 0:02:59]} Qe4 {[%emt 0:04:06]} 27. d6 {[%emt 0:14:16]} Bf6 {[%emt 0:05:35]} 28. d7 {[%emt 0:04:53]} Bd8 {[%emt 0:01:09]} 29. Qd6 {[%emt 0:01:52]} Qxc4 {[%emt 0:02:20]} 30. Qb8 {[%emt 0:07:23]} Nc6 {[%emt 0:00:10]} 31. Qc8 {[%emt 0:01:10]} Qe6 {[%emt 0:01:00]} 32. Bc3 {[%emt 0:00:56]} f6 {[%emt 0:00:48]} 33. Nd2 {[%emt 0:01:15]} Kf7 {[%emt 0:00:37]} 0-1

[Event "Australian-ch 2020"]
[Site "Kogarah"]
[Date "2020.01.02"]
[Round "1.5"]
[White "Bjelobrk, Igor"]
[Black "Lo, Willis"]
[Result "1-0"]
[ECO "E04"]
[WhiteElo "2403"]
[BlackElo "2108"]
[Annotator "ChessBase"]
[PlyCount "155"]
[EventDate "2020.01.02"]
[EventType "swiss"]
[EventCountry "AUS"]
[SourceTitle "playchess.com"]
[Source "ChessBase"]
[SourceQuality "1"]
[TimeControl "40/5400+30:1800+30"]

1. d4 {[%emt 0:00:00]} Nf6 {[%emt 0:00:00]} 2. c4 {[%emt 0:00:00]} e6 {[%emt 0:00:00]} 3. g3 {[%emt 0:00:27]} d5 {[%emt 0:00:01]} 4. Nf3 dxc4 {[%emt 0:00:14]} 5. Bg2 {[%emt 0:00:22]} Bb4+ {[%emt 0:00:09]} 6. Bd2 {[%emt 0:00:16]} a5 {[%emt 0:00:10]} 7. a3 {[%emt 0:00:16]} Bxd2+ {[%emt 0:00:13]} 8. Nbxd2 {[%emt 0:00:10]} b5 {[%emt 0:01:42]} 9. b3 {[%emt 0:00:28]} c3 {[%emt 0:07:24]} 10. Nb1 {[%emt 0:00:56]} Nd5 {[%emt 0:00:50]} 11. Qc2 {[%emt 0:08:35]} Bb7 {[%emt 0:06:42]} 12. Nxc3 {[%emt 0:01:52]} c6 {[%emt 0:07:11]} 13. Ne4 {[%emt 0:01:09]} Na6 {[%emt 0:03:03]} 14. O-O {[%emt 0:04:15]} O-O {[%emt 0:06:38]} 15. Rac1 {[%emt 0:05:24]} Rc8 {[%emt 0:05:56]} 16. Ne5 {[%emt 0:08:15]} Qe7 {[%emt 0:04:32]} 17. Nc5 {[%emt 0:08:25]} Nxc5 {[%emt 0:00:37]} 18. Qxc5 {[%emt 0:00:34]} Qxc5 {[%emt 0:14:43]} 19. Rxc5 {[%emt 0:00:24]} f6 {[%emt 0:03:15]} 20. Nd3 {[%emt 0:03:47]} Rfd8 {[%emt 0:06:07]} 21. e3 {[%emt 0:05:32]} Nb6 {[%emt 0:08:51]} 22. Rfc1 {[%emt 0:08:32]} a4 {[%emt 0:02:22]} 23. R5c3 {[%emt 0:06:11]} axb3 {[%emt 0:03:40]} 24. Rxb3 {[%emt 0:02:46]} Na4 {[%emt 0:06:58]} 25. Nc5 {[%emt 0:12:38]} Nxc5 {[%emt 0:00:07]} 26. Rxc5 {[%emt 0:00:03]} e5 {[%emt 0:01:10]} 27. Bh3 {[%emt 0:22:13]} Ra8 {[%emt 0:00:09]} 28. dxe5 {[%emt 0:00:00]} Rd1+ {[%emt 0:00:43]} 29. Kg2 {[%emt 0:00:00]} fxe5 {[%emt 0:01:05]} 30. Rxe5 {[%emt 0:00:00]} c5+ {[%emt 0:01:05]} 31. e4 {[%emt 0:00:00]} Re1 {[%emt 0:05:44]} 32. Be6+ {[%emt 0:00:00]} Kh8 {[%emt 0:00:06]} 33. Rxb5 {[%emt 0:00:00]} Bxe4+ {[%emt 0:00:20]} 34. Rxe4 {[%emt 0:00:00]} Rxe4 {[%emt 0:00:14]} 35. Bd5 {[%emt 0:00:00]} Ree8 {[%emt 0:01:11]} 36. Bxa8 {[%emt 0:00:00]} Rxa8 {[%emt 0:00:05]} 37. Rxc5 {[%emt 0:00:00]} h6 {[%emt 0:01:16]} 38. Rc3 {[%emt 0:00:00]} g5 {[%emt 0:00:47]} 39. Kf3 {[%emt 0:00:00]} Ra4 {[%emt 0:00:06]} 40. Ke3 {[%emt 0:00:00]} Kg7 {[%emt 0:00:07]} 41. Kd3 {[%emt 0:26:40]} Kg6 {[%emt 0:33:28]} 42. h3 {[%emt 0:00:00]} Kf5 {[%emt 0:00:00]} 43. Kc2 Kg6 {[%emt 0:00:00]} 44. Kd3 {[%emt 0:00:00]} Kf5 {[%emt 0:00:00]} 45. Kc2 {[%emt 0:00:00]} Ke4 {[%emt 0:00:00]} 46. Kb3 {[%emt 0:00:00]} Ra8 {[%emt 0:00:00]} 47. a4 {[%emt 0:00:00]} Rb8+ {[%emt 0:00:00]} 48. Ka3 {[%emt 0:00:00]} Ra8 {[%emt 0:00:00]} 49. Rc6 {[%emt 0:00:00]} Kf3 {[%emt 0:00:00]} 50. Rxh6 {[%emt 0:00:00]} Kxf2 {[%emt 0:00:00]} 51. g4 {[%emt 0:00:00]} Kg3 {[%emt 0:00:00]} 52. Rg6 {[%emt 0:00:00]} Kf4 {[%emt 0:00:00]} 53. Kb4 {[%emt 0:00:00]} Rh8 {[%emt 0:00:00]} 54. Rf6+ {[%emt 0:00:00]} Kg3 {[%emt 0:07:59]} 55. Rf5 {[%emt 0:00:00]} Rg8 {[%emt 0:00:00]} 56. Rc5 {[%emt 0:00:00]} Kxh3 {[%emt 0:00:00]} 57. Rc4 {[%emt 0:00:00]} Rb8+ {[%emt 0:00:00]} 58. Kc3 {[%emt 0:00:00]} Ra8 {[%emt 0:00:00]} 59. Rd4 {[%emt 0:00:00]} Kh4 {[%emt 0:00:00]} 60. Kb4 {[%emt 0:00:00]} Rb8+ {[%emt 0:00:00]} 61. Kc5 {[%emt 0:00:00]} Re8 {[%emt 0:00:00]} 62. a5 {[%emt 0:01:36]} Re5+ {[%emt 0:00:00]} 63. Kb4 {[%emt 0:01:47]} Re6 {[%emt 0:00:00]} 64. Ka4 {[%emt 0:00:34]} Re1 {[%emt 0:00:24]} 65. Kb3 {[%emt 0:04:22]} Ra1 {[%emt 0:00:53]} 66. Ra4 {[%emt 0:02:01]} Rb1+ {[%emt 0:00:31]} 67. Kc2 {[%emt 0:00:06]} Rb7 {[%emt 0:00:06]} 68. a6 {[%emt 0:00:22]} Ra7 {[%emt 0:00:07]} 69. Kd3 {[%emt 0:00:50]} Kg3 {[%emt 0:00:16]} 70. Ke2 {[%emt 0:00:46]} Re7+ {[%emt 0:00:23]} 71. Kd3 {[%emt 0:01:50]} Ra7 {[%emt 0:00:07]} 72. Ke3 {[%emt 0:00:11]} Kh4 {[%emt 0:01:42]} 73. Kf3 {[%emt 0:00:26]} Rf7+ {[%emt 0:00:35]} 74. Kg2 {[%emt 0:00:09]} Ra7 {[%emt 0:00:27]} 75. Kh2 {[%emt 0:00:19]} Rb7 {[%emt 0:04:19]} 76. a7 {[%emt 0:00:58]} Rb2+ {[%emt 0:00:38]} 77. Kg1 {[%emt 0:00:12]} Rg2+ {[%emt 0:00:30]} 78. Kf1 {[%emt 0:00:19]} 1-0

[Event "Australian-ch 2020"]
[Site "Kogarah"]
[Date "2020.01.02"]
[Round "1.6"]
[White "Kargosha, Bahman"]
[Black "Wallis, Christopher"]
[Result "1/2-1/2"]
[ECO "E52"]
[WhiteElo "2101"]
[BlackElo "2322"]
[Annotator "ChessBase"]
[PlyCount "96"]
[EventDate "2020.01.02"]
[EventType "swiss"]
[EventCountry "AUS"]
[SourceTitle "playchess.com"]
[Source "ChessBase"]
[SourceQuality "1"]
[TimeControl "40/5400+30:1800+30"]

1. d4 {[%emt 0:00:00]} Nf6 {[%emt 0:00:00]} 2. c4 {[%emt 0:00:00]} e6 {[%emt 0:00:00]} 3. Nc3 {[%emt 0:00:00]} Bb4 {[%emt 0:00:04]} 4. e3 {[%emt 0:00:10]} O-O {[%emt 0:00:12]} 5. Bd3 {[%emt 0:00:24]} d5 {[%emt 0:00:11]} 6. Nf3 {[%emt 0:00:09]} b6 {[%emt 0:00:10]} 7. O-O {[%emt 0:02:50]} Ba6 {[%emt 0:00:13]} 8. cxd5 {[%emt 0:02:20]} exd5 {[%emt 0:00:17]} 9. Bxa6 {[%emt 0:03:45]} Nxa6 {[%emt 0:00:09]} 10. Qa4 {[%emt 0:01:16]} Qc8 {[%emt 0:01:03]} 11. Bd2 {[%emt 0:01:24]} Qb7 {[%emt 0:04:39]} 12. Rac1 {[%emt 0:02:04]} c5 {[%emt 0:06:16]} 13. dxc5 {[%emt 0:24:07]} bxc5 {[%emt 0:00:58]} 14. Rfd1 {[%emt 0:02:26]} c4 {[%emt 0:16:32]} 15. Qb5 {[%emt 0:07:10]} Qxb5 {[%emt 0:13:53]} 16. Nxb5 {[%emt 0:00:03]} Bxd2 {[%emt 0:01:05]} 17. Rxd2 {[%emt 0:06:09]} Nb4 {[%emt 0:06:00]} 18. Nc3 {[%emt 0:05:18]} Nd3 {[%emt 0:05:20]} 19. Rb1 {[%emt 0:00:59]} Rab8 {[%emt 0:04:13]} 20. Nd4 {[%emt 0:14:00]} Rb6 {[%emt 0:10:10]} 21. f3 {[%emt 0:06:49]} Re8 {[%emt 0:06:16]} 22. Re2 {[%emt 0:00:18]} Reb8 {[%emt 0:02:12]} 23. Na4 {[%emt 0:01:04]} R6b7 {[%emt 0:04:47]} 24. Nc6 {[%emt 0:01:15]} Rc8 {[%emt 0:02:49]} 25. Nd4 {[%emt 0:00:40]} h5 {[%emt 0:02:32]} 26. Nc3 {[%emt 0:00:43]} g6 {[%emt 0:01:12]} 27. Ndb5 {[%emt 0:04:46]} Rcb8 {[%emt 0:02:55]} 28. Nd4 {[%emt 0:04:45]} Kf8 {[%emt 0:05:19]} 29. Nc6 {[%emt 0:00:48]} Rc8 {[%emt 0:00:45]} 30. Nd4 {[%emt 0:00:37]} Re7 {[%emt 0:00:46]} 31. Nd1 {[%emt 0:06:59]} Rce8 {[%emt 0:02:12]} 32. Nc6 {[%emt 0:00:43]} Rb7 {[%emt 0:01:03]} 33. Nf2 {[%emt 0:01:10]} Rc8 {[%emt 0:00:43]} 34. Nd4 {[%emt 0:00:25]} Nc5 {[%emt 0:00:19]} 35. b4 {[%emt 0:01:12]} Na4 {[%emt 0:00:33]} 36. Rc2 {[%emt 0:00:36]} a6 {[%emt 0:01:06]} 37. Nd1 {[%emt 0:00:09]} Nc5 {[%emt 0:00:58]} 38. Nc3 {[%emt 0:00:29]} Nd3 {[%emt 0:00:18]} 39. b5 {[%emt 0:00:28]} axb5 {[%emt 0:00:08]} 40. Rxb5 {[%emt 0:00:36]} Rxb5 {[%emt 0:00:39]} 41. Ndxb5 {[%emt 0:01:51]} Ra8 {[%emt 0:06:50]} 42. a4 {[%emt 0:02:10]} Ke7 {[%emt 0:01:07]} 43. Ra2 {[%emt 0:09:58]} Ra5 {[%emt 0:03:10]} 44. Ra1 {[%emt 0:01:16]} Kd7 {[%emt 0:04:26]} 45. Rb1 {[%emt 0:00:51]} Kc6 {[%emt 0:02:33]} 46. Nd4+ {[%emt 0:01:14]} Kc7 {[%emt 0:00:21]} 47. Ndb5+ {[%emt 0:00:47]} Kc6 {[%emt 0:02:00]} 48. Nd4+ {[%emt 0:00:16]} Kc7 {[%emt 0:00:30]} 1/2-1/2

[Event "Australian-ch 2020"]
[Site "Kogarah"]
[Date "2020.01.02"]
[Round "1.7"]
[White "Solomon, Stephen J"]
[Black "Kethro, Michael"]
[Result "1-0"]
[ECO "B47"]
[WhiteElo "2319"]
[BlackElo "2093"]
[Annotator "ChessBase"]
[PlyCount "105"]
[EventDate "2020.01.02"]
[EventType "swiss"]
[EventCountry "AUS"]
[SourceTitle "playchess.com"]
[Source "ChessBase"]
[SourceQuality "1"]
[TimeControl "40/5400+30:1800+30"]

1. e4 {[%emt 0:00:00]} c5 {[%emt 0:00:00]} 2. Nf3 {[%emt 0:00:00]} e6 {[%emt 0:00:01]} 3. d4 {[%emt 0:00:00]} cxd4 {[%emt 0:00:08]} 4. Nxd4 {[%emt 0:00:00]} Nc6 {[%emt 0:00:29]} 5. Nc3 {[%emt 0:00:07]} Qc7 {[%emt 0:00:18]} 6. g3 {[%emt 0:00:59]} a6 {[%emt 0:00:37]} 7. Bg2 {[%emt 0:00:28]} Nf6 {[%emt 0:00:52]} 8. O-O {[%emt 0:00:21]} Nxd4 {[%emt 0:00:48]} 9. Qxd4 {[%emt 0:00:50]} Bc5 {[%emt 0:00:18]} 10. Bf4 {[%emt 0:01:04]} d6 {[%emt 0:00:34]} 11. Qd3 {[%emt 0:00:20]} Ng4 {[%emt 0:04:55]} 12. Na4 {[%emt 0:06:31]} e5 {[%emt 0:04:12]} 13. Bd2 {[%emt 0:06:06]} Bd4 {[%emt 0:08:33]} 14. h3 {[%emt 0:13:26]} Nf6 {[%emt 0:22:00]} 15. c3 {[%emt 0:04:13]} Ba7 {[%emt 0:02:08]} 16. c4 {[%emt 0:00:31]} Be6 {[%emt 0:15:08]} 17. Rac1 {[%emt 0:01:13]} O-O {[%emt 0:03:36]} 18. b3 {[%emt 0:01:54]} Nd7 {[%emt 0:04:21]} 19. Nc3 {[%emt 0:02:15]} Nc5 {[%emt 0:05:01]} 20. Qe2 {[%emt 0:04:40]} Qe7 {[%emt 0:04:00]} 21. Be3 {[%emt 0:04:22]} Bd7 {[%emt 0:03:36]} 22. Nd5 {[%emt 0:06:47]} Qd8 {[%emt 0:00:53]} 23. f4 Ne6 {[%emt 0:00:30]} 24. f5 Nd4 {[%emt 0:00:30]} 25. Qf2 f6 {[%emt 0:00:30]} 26. g4 Bc6 {[%emt 0:00:30]} 27. Kh2 Bxd5 {[%emt 0:00:30]} 28. exd5 b5 {[%emt 0:00:30]} 29. cxb5 axb5 {[%emt 0:00:30]} 30. b4 Bb6 {[%emt 0:00:30]} 31. Rc3 Ra4 {[%emt 0:00:30]} 32. a3 Qa8 {[%emt 0:00:30]} 33. Qb2 Qa7 {[%emt 0:00:30]} 34. Be4 h6 {[%emt 0:00:30]} 35. Kg2 Ra8 {[%emt 0:00:30]} 36. Bc1 Qb7 {[%emt 0:00:30]} 37. Rd1 Rc8 {[%emt 0:00:30]} 38. Rxc8+ Qxc8 {[%emt 0:00:30]} 39. Be3 Ra7 {[%emt 0:00:30]} 40. Rc1 Qa8 {[%emt 0:00:30]} 41. Rc3 Rc7 {[%emt 0:30:30]} 42. Rc6 Rxc6 {[%emt 0:00:30]} 43. dxc6 Qa4 {[%emt 0:00:30]} 44. Qc1 Qa7 {[%emt 0:00:30]} 45. Bd5+ Kh7 {[%emt 0:00:30]} 46. Bxd4 exd4 {[%emt 0:00:30]} 47. Qe1 Qb8 {[%emt 0:00:30]} 48. Qe2 Ba7 {[%emt 0:00:30]} 49. g5 fxg5 {[%emt 0:00:30]} 50. f6 Qd8 {[%emt 0:00:30]} 51. Qe7 {[%emt 1:09:09]} Qb8 {[%emt 0:18:30]} 52. Qe2 {[%emt 0:06:41]} Qd8 {[%emt 0:00:30]} 53. Qe7 {[%emt 0:00:56]} 1-0

[Event "Australian-ch 2020"]
[Site "Kogarah"]
[Date "2020.01.02"]
[Round "1.8"]
[White "Ng, Clive"]
[Black "Puccini, Jack"]
[Result "1/2-1/2"]
[ECO "B80"]
[WhiteElo "2061"]
[BlackElo "2265"]
[Annotator "ChessBase"]
[PlyCount "152"]
[EventDate "2020.01.02"]
[EventType "swiss"]
[EventCountry "AUS"]
[SourceTitle "playchess.com"]
[Source "ChessBase"]
[SourceQuality "1"]
[TimeControl "40/5400+30:1800+30"]

1. e4 {[%emt 0:00:00]} c5 {[%emt 0:00:00]} 2. Nf3 {[%emt 0:00:00]} d6 {[%emt 0:00:00]} 3. d4 {[%emt 0:00:00]} cxd4 {[%emt 0:00:00]} 4. Nxd4 {[%emt 0:00:00]} Nf6 {[%emt 0:00:04]} 5. Nc3 {[%emt 0:00:00]} a6 {[%emt 0:00:05]} 6. Be3 {[%emt 0:00:04]} e6 {[%emt 0:00:17]} 7. f3 {[%emt 0:00:29]} b5 {[%emt 0:00:22]} 8. Qd2 {[%emt 0:00:08]} Nbd7 {[%emt 0:00:22]} 9. g4 {[%emt 0:00:09]} Nb6 {[%emt 0:00:21]} 10. a4 {[%emt 0:00:15]} Nc4 {[%emt 0:00:05]} 11. Bxc4 {[%emt 0:00:06]} bxc4 {[%emt 0:00:04]} 12. a5 {[%emt 0:00:12]} Bb7 {[%emt 0:01:20]} 13. Na4 {[%emt 0:03:18]} d5 {[%emt 0:00:33]} 14. g5 {[%emt 0:03:34]} Nd7 {[%emt 0:01:12]} 15. exd5 {[%emt 0:01:16]} Bxd5 {[%emt 0:01:05]} 16. Rf1 {[%emt 0:30:58]} g6 {[%emt 0:16:40]} 17. f4 {[%emt 0:08:07]} Rb8 {[%emt 0:18:12]} 18. f5 {[%emt 0:04:56]} Bb4 {[%emt 0:04:04]} 19. c3 {[%emt 0:00:27]} Bxa5 {[%emt 0:00:42]} 20. fxe6 {[%emt 0:00:29]} fxe6 {[%emt 0:00:22]} 21. O-O-O {[%emt 0:14:02]} Qe7 {[%emt 0:04:26]} 22. Bf4 {[%emt 0:10:13]} O-O {[%emt 0:02:30]} 23. Bxb8 {[%emt 0:03:16]} Rxb8 {[%emt 0:00:17]} 24. Rde1 {[%emt 0:00:10]} Bc7 {[%emt 0:10:33]} 25. Nf5 {[%emt 0:12:19]} gxf5 {[%emt 0:00:17]} 26. Qxd5 {[%emt 0:00:30]} Qxg5+ {[%emt 0:00:36]} 27. Qd2 {[%emt 0:00:07]} Qxd2+ {[%emt 0:00:18]} 28. Kxd2 {[%emt 0:00:01]} Kf7 {[%emt 0:00:41]} 29. Re4 {[%emt 0:01:44]} Ne5 {[%emt 0:06:50]} 30. Rh4 {[%emt 0:01:10]} Kg6 {[%emt 0:00:44]} 31. Rg1+ {[%emt 0:01:26]} Ng4 {[%emt 0:00:14]} 32. h3 {[%emt 0:04:25]} Bf4+ {[%emt 0:06:21]} 33. Ke2 {[%emt 0:00:48]} Bg5 {[%emt 0:01:49]} 34. Rhxg4 {[%emt 0:00:12]} fxg4 {[%emt 0:00:05]} 35. Rxg4 {[%emt 0:00:01]} Kf5 {[%emt 0:03:47]} 36. Rxc4 {[%emt 0:00:04]} e5 {[%emt 0:00:22]} 37. Rc7 {[%emt 0:01:23]} h6 {[%emt 0:04:41]} 38. Rf7+ {[%emt 0:01:07]} Ke6 {[%emt 0:01:30]} 39. Ra7 {[%emt 0:00:21]} Rd8 {[%emt 0:00:04]} 40. Nc5+ {[%emt 0:01:37]} Kf5 {[%emt 0:10:05]} 41. Rf7+ {[%emt 0:00:36]} Kg6 {[%emt 0:01:43]} 42. Rd7 {[%emt 0:00:15]} a5 {[%emt 0:07:47]} 43. Rxd8 {[%emt 0:03:10]} Bxd8 {[%emt 0:00:06]} 44. Kf3 {[%emt 0:00:23]} Kf5 {[%emt 0:02:03]} 45. b3 {[%emt 0:01:26]} Bh4 {[%emt 0:01:56]} 46. c4 {[%emt 0:02:33]} Be1 {[%emt 0:06:32]} 47. Ne4 {[%emt 0:00:32]} Ke6 {[%emt 0:00:05]} 48. Ke2 {[%emt 0:01:55]} Bb4 {[%emt 0:00:50]} 49. Ng3 {[%emt 0:02:07]} Bc3 {[%emt 0:00:37]} 50. Kf3 {[%emt 0:01:03]} Be1 {[%emt 0:01:02]} 51. Nf1 {[%emt 0:00:29]} Kd6 {[%emt 0:02:07]} 52. Ne3 {[%emt 0:07:28]} Kc5 {[%emt 0:00:49]} 53. Ke4 {[%emt 0:01:08]} Bc3 {[%emt 0:00:52]} 54. Nd5 {[%emt 0:03:00]} Bb2 {[%emt 0:01:46]} 55. Kd3 {[%emt 0:03:55]} Ba1 {[%emt 0:00:47]} 56. Ne3 {[%emt 0:01:24]} Bb2 {[%emt 0:02:11]} 57. Ng4 {[%emt 0:01:00]} h5 {[%emt 0:11:40]} 58. Nf6 {[%emt 0:01:10]} Kb4 {[%emt 0:00:16]} 59. Kc2 {[%emt 0:00:20]} Bd4 {[%emt 0:00:09]} 60. Nxh5 {[%emt 0:01:35]} a4 {[%emt 0:00:18]} 61. bxa4 {[%emt 0:00:14]} Kxc4 {[%emt 0:00:20]} 62. Nf6 {[%emt 0:01:26]} Bf2 {[%emt 0:02:18]} 63. Kd2 {[%emt 0:01:43]} Kb4 {[%emt 0:00:38]} 64. Ng4 {[%emt 0:00:22]} Bh4 {[%emt 0:00:52]} 65. Nxe5 {[%emt 0:00:36]} Kxa4 {[%emt 0:00:07]} 66. Ke3 {[%emt 0:00:20]} Kb5 {[%emt 0:00:17]} 67. Kf4 {[%emt 0:00:36]} Kc5 {[%emt 0:02:04]} 68. Kg4 {[%emt 0:00:27]} Be7 {[%emt 0:00:18]} 69. Kf5 {[%emt 0:00:48]} Bh4 {[%emt 0:00:39]} 70. Kg4 {[%emt 0:00:39]} Be7 {[%emt 0:00:05]} 71. Nf3 {[%emt 0:00:13]} Kd6 {[%emt 0:00:54]} 72. Kf5 {[%emt 0:00:09]} Kd7 {[%emt 0:00:20]} 73. Ng5 {[%emt 0:00:08]} Ke8 {[%emt 0:00:23]} 74. h4 {[%emt 0:02:21]} Bxg5 {[%emt 0:00:07]} 75. Kxg5 {[%emt 0:00:06]} Kf7 {[%emt 0:00:06]} 76. Kh6 {[%emt 0:00:03]} Kg8 {[%emt 0:00:05]} 1/2-1/2

[Event "Australian-ch 2020"]
[Site "Kogarah"]
[Date "2020.01.02"]
[Round "1.9"]
[White "Zhang, Jilin"]
[Black "Parle, Hughston"]
[Result "1-0"]
[ECO "B92"]
[WhiteElo "2237"]
[BlackElo "2057"]
[Annotator "ChessBase"]
[PlyCount "53"]
[EventDate "2020.01.02"]
[EventType "swiss"]
[EventCountry "AUS"]
[SourceTitle "playchess.com"]
[Source "ChessBase"]
[SourceQuality "1"]
[TimeControl "40/5400+30:1800+30"]

1. e4 {[%emt 0:00:00]} c5 {[%emt 0:00:00]} 2. Nf3 {[%emt 0:00:01]} d6 {[%emt 0:00:00]} 3. d4 {[%emt 0:00:30]} cxd4 {[%emt 0:00:30]} 4. Nxd4 {[%emt 0:00:30]} Nf6 {[%emt 0:00:30]} 5. Nc3 {[%emt 0:00:30]} a6 {[%emt 0:00:30]} 6. Be2 {[%emt 0:00:30]} e5 {[%emt 0:00:30]} 7. Nb3 {[%emt 0:00:30]} Be7 {[%emt 0:00:30]} 8. O-O {[%emt 0:00:30]} O-O {[%emt 0:00:30]} 9. Be3 {[%emt 0:00:30]} Be6 {[%emt 0:00:30]} 10. Qd2 {[%emt 0:00:30]} Nbd7 {[%emt 0:00:30]} 11. a4 {[%emt 0:00:30]} Rc8 {[%emt 0:00:30]} 12. Rfd1 {[%emt 0:00:30]} Qc7 {[%emt 0:00:30]} 13. a5 {[%emt 0:00:30]} Rfd8 {[%emt 0:00:30]} 14. Qe1 {[%emt 0:00:30]} Qc6 {[%emt 0:00:30]} 15. Bf3 {[%emt 0:00:30]} Nf8 {[%emt 0:00:30]} 16. Nc1 {[%emt 0:00:30]} Ng6 {[%emt 0:00:30]} 17. g3 {[%emt 0:00:30]} d5 {[%emt 0:00:30]} 18. exd5 {[%emt 0:00:30]} Nxd5 {[%emt 0:00:30]} 19. Bb6 {[%emt 0:00:30]} Rd6 {[%emt 0:00:30]} 20. Nd3 {[%emt 0:00:30]} Qe8 {[%emt 0:00:30]} 21. Nxd5 {[%emt 0:00:30]} Bxd5 {[%emt 0:00:30]} 22. Bg4 {[%emt 0:00:30]} Rc4 {[%emt 0:00:30]} 23. Nb4 {[%emt 0:00:30]} Re4 {[%emt 0:00:30]} 24. Qc3 {[%emt 0:00:30]} Rxg4 {[%emt 0:00:30]} 25. Nxd5 {[%emt 0:00:30]} Nf4 {[%emt 0:00:30]} 26. Nxe7+ {[%emt 0:00:30]} Kf8 {[%emt 0:00:30]} 27. Qc8 {[%emt 0:00:30]} 1-0

[Event "Australian-ch 2020"]
[Site "Kogarah"]
[Date "2020.01.02"]
[Round "1.10"]
[White "Bayaca, Sterling"]
[Black "McGowan, Cameron"]
[Result "0-1"]
[ECO "A36"]
[WhiteElo "1994"]
[BlackElo "2221"]
[Annotator "ChessBase"]
[PlyCount "68"]
[EventDate "2020.01.02"]
[EventType "swiss"]
[EventCountry "AUS"]
[SourceTitle "playchess.com"]
[Source "ChessBase"]
[SourceQuality "1"]
[TimeControl "40/5400+30:1800+30"]

1. c4 Nf6 2. Nc3 g6 3. e4 d6 4. g3 Bg7 5. Bg2 O-O 6. Nge2 c5 7. O-O Nc6 8. d3 Ne8 9. Be3 Nc7 10. Rb1 Rb8 11. d4 cxd4 12. Nxd4 Ne6 13. Nxe6 fxe6 14. Qd2 Qa5 15. Rbc1 Ne5 16. Qe2 a6 17. f4 Nc6 18. Rfd1 e5 19. Qd2 Bg4 20. Rf1 Nd4 21. h3 Be2 22. b3 Bxf1 23. Rxf1 e6 24. Rd1 b5 25. cxb5 axb5 26. Ne2 Qxd2 27. Rxd2 Nxe2+ 28. Rxe2 exf4 29. gxf4 e5 30. fxe5 Bxe5 31. Rd2 Rbc8 32. Rd3 Rc2 33. a3 Re2 34. Bd4 Re1+ 0-1